Workbook

Sheet Лист1
A1: 1517 | B1: 6.25 | C1: =IF(B1-INT(B1)=0,MROUND(A1,B1),INT(INT(A1/B1)*MOD(B1,1))*B1/MOD(B1,1)) -> 1500 | D1: =IF(MOD(B1,1),IF(MOD(1/MOD(B1,1),1),0,INT(INT(A1/B1)*MOD(B1,1))*B1/MOD(B1,1)),FLOOR(A1,B1)) -> 1500 | E1: =MROUND(A1/B1,IFERROR(1/MOD(B1,1),1))*B1 -> 1525 | F1: =MATCH(MIN(IF(MOD(ROUND(ROW($1:$9999)*B1,12),1)=0,ABS(ROW($1:$9999)*B1-A1))),ABS(ROW($1:$9999)*B1-A1),)*B1 -> 1525 | H1: =F1/B1 -> 244
A2: 1517 | B2: 6 | C2: 1518 | D2: =IF(MOD(B2,1),IF(MOD(1/MOD(B2,1),1),0,INT(INT(A2/B2)*MOD(B2,1))*B2/MOD(B2,1)),FLOOR(A2,B2)) -> 1512 | E2: =MROUND(A2/B2,IFERROR(1/MOD(B2,1),1))*B2 -> 1518 | F2: =MATCH(MIN(IF(MOD(ROUND(ROW($1:$9999)*B2,12),1)=0,ABS(ROW($1:$9999)*B2-A2))),ABS(ROW($1:$9999)*B2-A2),)*B2 -> 1518 | H2: =F2/B2 -> 253
A3: 1517 | B3: 6.26 | C3: =IF(B3-INT(B3)=0,MROUND(A3,B3),INT(INT(A3/B3)*MOD(B3,1))*B3/MOD(B3,1)) -> 1492.769231 | D3: =IF(MOD(B3,1),IF(MOD(1/MOD(B3,1),1),0,INT(INT(A3/B3)*MOD(B3,1))*B3/MOD(B3,1)),FLOOR(A3,B3)) -> 0 | E3: =MROUND(A3/B3,IFERROR(1/MOD(B3,1),1))*B3 -> 1516.846154 | F3: =MATCH(MIN(IF(MOD(ROUND(ROW($1:$9999)*B3,12),1)=0,ABS(ROW($1:$9999)*B3-A3))),ABS(ROW($1:$9999)*B3-A3),)*B3 -> 1565 | H3: 250
A4: 1517 | B4: 7.25 | C4: 1508 | D4: =IF(MOD(B4,1),IF(MOD(1/MOD(B4,1),1),0,INT(INT(A4/B4)*MOD(B4,1))*B4/MOD(B4,1)),FLOOR(A4,B4)) -> 1508 | E4: =MROUND(A4/B4,IFERROR(1/MOD(B4,1),1))*B4 -> 1508 | F4: =MATCH(MIN(IF(MOD(ROUND(ROW($1:$9999)*B4,12),1)=0,ABS(ROW($1:$9999)*B4-A4))),ABS(ROW($1:$9999)*B4-A4),)*B4 -> 1508 | H4: 208
A5: 1517 | B5: =4/3 -> 1.333333333 | C5: =IF(B5-INT(B5)=0,MROUND(A5,B5),INT(INT(A5/B5)*MOD(B5,1))*B5/MOD(B5,1)) -> 1516 | D5: =IF(MOD(B5,1),IF(MOD(1/MOD(B5,1),1),0,INT(INT(A5/B5)*MOD(B5,1))*B5/MOD(B5,1)),FLOOR(A5,B5)) -> 0 | E5: =MROUND(A5/B5,IFERROR(1/MOD(B5,1),1))*B5 -> 1516 | F5: =MATCH(MIN(IF(MOD(ROUND(ROW($1:$9999)*B5,12),1)=0,ABS(ROW($1:$9999)*B5-A5))),ABS(ROW($1:$9999)*B5-A5),)*B5 -> 1516 | H5: 1137

Sheet Лист2
D3: =IF(C3-INT(C3)=0,MROUND(B3,C3),INT(INT(B3/C3)*MOD(C3,1))*C3/MOD(C3,1)) -> 0
